bitfinex-derivatives/quotes_ETHF0:USTF0_20250308
["timestamp","ask_amount","ask_price","bid_price","bid_amount"]
[1741418316340,4.13977,2146.2,2145.7,4.5203]
[1741418316542,3.2078,2146.2,2145.8,0.93212]
[1741418316741,0.93204,2146.0,2145.8,0.96212]
[1741418316942,0.93204,2146.0,2145.9,0.606]
[1741418317137,0.93202,2146.1,2145.9,0.606]
[1741418317442,0.932,2146.1,2145.9,1.53804]
[1741418317944,0.932,2146.1,2145.9,1.55804]
[1741418318644,0.932,2146.1,2145.9,1.55807]
[1741418319244,3.2078,2146.2,2145.9,0.626]
[1741418319542,4.13975,2146.2,2146.0,0.93204]
[1741418319740,3.2078,2146.2,2146.1,1.3181]
[1741418320141,3.2078,2146.2,2146.1,2.25009]
[1741418324548,3.2078,2146.2,2146.1,1.3181]
[1741418324843,3.2078,2146.2,2146.1,2.25009]
[1741418327550,3.2078,2146.2,2146.1,1.3181]
[1741418327849,3.2078,2146.2,2146.1,2.25009]
[1741418329745,7.2078,2146.2,2145.4,3.2078]
[1741418329940,0.93215,2145.8,2145.6,0.6563]
[1741418330145,4.1399,2145.9,2145.6,1.76851]
[1741418330747,0.93214,2145.8,2145.6,0.8363]
[1741418330945,3.2078,2145.9,2145.6,0.8363]
[1741418331145,3.2078,2145.9,2145.7,0.93214]
[1741418331440,1.2849,2146.1,2145.7,0.1]
[1741418331744,0.93212,2145.8,2145.7,0.1]
[1741418333344,3.2078,2145.9,2145.6,0.6563]
[1741418333545,0.93217,2145.7,2145.6,0.6563]
[1741418334151,3.2078,2145.9,2145.5,0.6678]
[1741418334449,0.93219,2145.7,2145.5,0.6878]
[1741418334650,0.1738,2145.8,2145.5,0.6878]
[1741418334851,0.93218,2145.7,2145.5,1.62004]
[1741418335248,0.93218,2145.7,2145.5,0.6878]
[1741418336349,3.2078,2145.9,2145.5,0.6878]
[1741418336656,0.93213,2145.8,2145.6,0.93219]
[1741418337057,0.93213,2145.8,2145.7,0.6564]
[1741418337555,0.93221,2145.6,2145.5,0.6678]
[1741418337854,0.93225,2145.5,2145.4,3.8435]
[1741418338055,0.93224,2145.6,2145.4,4.83578]
[1741418338652,0.93221,2145.6,2145.4,4.83578]
[1741418339659,0.93221,2145.6,2145.4,3.9035]
[1741418339849,0.93221,2145.6,2145.4,4.83578]
[1741418340050,0.668,2145.7,2145.4,3.9035]
[1741418340251,0.93212,2145.8,2145.4,3.9035]
[1741418340446,3.8431,2145.9,2145.4,3.9035]
[1741418340759,0.93213,2145.8,2145.6,0.93219]
[1741418341257,4.77521,2145.9,2145.6,0.93219]
[1741418341457,4.77521,2145.9,2145.7,1.59296]
[1741418341759,0.93209,2145.9,2145.7,1.65295]
[1741418341952,0.93209,2145.9,2145.8,0.6099]
[1741418342354,0.6616,2146.1,2145.8,0.6099]
[1741418342658,0.93201,2146.1,2145.9,0.93207]
[1741418342853,0.93201,2146.1,2145.9,1.56537]
[1741418345957,0.93201,2146.1,2145.9,0.6333]
[1741418346256,0.93201,2146.1,2145.9,1.56538]
[1741418347555,0.93201,2146.1,2145.9,1.59537]
[1741418347956,0.93201,2146.1,2146.0,0.6075]
[1741418348258,3.2078,2146.2,2146.0,0.6075]
[1741418348454,0.93199,2146.1,2146.0,0.6075]
[1741418367377,0.93204,2146.0,2145.9,0.6333]
[1741418367575,0.93204,2146.0,2145.9,0.7133]
[1741418368677,0.93204,2146.0,2145.9,1.3801]
[1741418370574,3.2078,2146.0,2145.5,0.12]
[1741418370876,0.93225,2145.6,2145.5,1.2868]
[1741418371178,1.4569,2145.9,2145.4,4.4534]
[1741418371179,0.93225,2145.5,2145.4,4.4534]
[1741418371379,1.4569,2145.9,2145.4,5.0632]
[1741418371579,0.93223,2145.6,2145.4,5.0632]
[1741418371880,0.93223,2145.6,2145.4,5.99549]
[1741418372372,1.4569,2145.9,2145.4,5.99549]
[1741418372373,1.4569,2145.9,2145.4,5.0632]
[1741418372575,0.93234,2145.3,2145.2,0.00699676]
[1741418372778,0.93234,2145.3,2145.2,0.09699676]
[1741418374982,0.93234,2145.3,2145.2,0.00699676]
[1741418376682,0.9326,2144.7,2144.6,5.2098]
[1741418376871,0.93259,2144.8,2144.6,7.8862]
[1741418377474,0.93259,2144.8,2144.6,8.81884]
[1741418377670,0.00699676,2144.9,2144.6,7.8862]
[1741418377873,0.93236,2145.3,2144.6,10.21775]
[1741418378081,0.93241,2145.2,2144.9,4.14029]
[1741418378384,0.93243,2145.1,2145.0,1.2661]
[1741418378585,0.93243,2145.1,2145.0,1.3261]
[1741418381079,0.93243,2145.1,2145.0,0.704]
[1741418381278,0.93243,2145.1,2145.0,0.644]
[1741418383194,4.14023,2145.1,2145.0,0.644]
[1741418383986,0.93241,2145.2,2145.0,1.57647]
[1741418384285,0.93241,2145.2,2145.0,0.644]
[1741418384483,0.93243,2145.1,2145.0,0.644]
[1741418385385,3.2078,2145.4,2145.0,0.644]
[1741418385585,0.93243,2145.1,2145.0,0.644]
[1741418386090,3.2078,2145.4,2145.0,0.644]
[1741418386288,0.93241,2145.2,2145.0,0.644]
[1741418387289,6.1318,2145.7,2145.0,0.694]
[1741418387591,0.93225,2145.5,2145.2,0.93237]
[1741418387789,0.9323,2145.4,2145.3,0.6661]
[1741418389087,4.1401,2145.4,2145.3,0.6661]
[1741418389789,0.93234,2145.3,2145.2,0.6256]
[1741418389991,3.2078,2145.4,2145.0,0.644]
[1741418390188,0.93243,2145.1,2145.0,1.4053]
[1741418390989,4.14023,2145.1,2145.0,1.2853]
[1741418391187,4.14023,2145.1,2145.0,0.644]
[1741418391389,0.93251,2144.9,2144.8,0.6413]
[1741418391586,0.93251,2144.9,2144.8,1.5241]
[1741418392890,3.2078,2145.1,2145.0,0.93247]
[1741418393098,3.2078,2145.4,2145.0,0.05]
[1741418393297,3.2078,2145.4,2145.1,0.6047]
[1741418393594,3.2078,2145.4,2145.2,0.6428]
[1741418393793,3.2078,2145.4,2145.2,1.2983]
[1741418393988,4.1401,2145.4,2145.2,1.2983]
[1741418394689,0.93227,2145.5,2145.2,2.23066]
[1741418395797,0.93227,2145.5,2145.3,0.93234]
[1741418396097,0.93227,2145.5,2145.2,2.23065]
[1741418396098,0.93226,2145.5,2145.2,2.23065]
[1741418396501,4.466,2145.7,2145.5,0.93223]
[1741418396692,4.13985,2146.0,2145.7,0.93214]
[1741418396993,6.14586,2146.0,2145.7,0.93215]
[1741418397193,6.14586,2146.0,2145.8,0.9321]
[1741418397194,3.2078,2146.0,2145.8,0.9321]
[1741418397699,4.0573,2146.3,2145.6,1.90999676]
[1741418397896,2.006,2146.2,2145.9,0.93205]
[1741418398097,2.93797,2146.2,2146.0,0.6156]
[1741418400196,2.006,2146.2,2146.0,0.6156]
[1741418400398,0.93199,2146.1,2146.0,0.6156]
[1741418400996,2.006,2146.2,2145.6,1.29659676]
[1741418401200,0.93211,2145.9,2145.6,3.06067676]
[1741418401498,4.13987,2146.0,2145.7,0.93215]
[1741418401698,0.93209,2145.9,2145.7,1.03215]
[1741418401893,4.13985,2146.0,2145.8,0.93212]
[1741418402099,4.13985,2146.0,2145.8,0.02]
[1741418402306,0.93208,2145.9,2145.8,0.02]
[1741418402494,3.2078,2146.0,2145.8,0.02]
[1741418402697,4.5246,2146.3,2145.8,0.02]
[1741418402895,2.003,2146.2,2146.0,0.93201]
[1741418403199,0.93195,2146.2,2146.1,0.6676]
[1741418404201,3.8568,2146.3,2145.8,4.1399]
[1741418404202,0.93203,2146.1,2145.8,4.1399]
[1741418404402,0.93203,2146.1,2145.9,0.6676]
[1741418404607,0.93203,2146.1,2145.9,0.7376]
[1741418404793,4.4933,2146.3,2145.9,1.66965]
[1741418404997,0.93199,2146.1,2146.0,0.6363]
[1741418405701,0.93197,2146.2,2146.0,0.6363]
[1741418406698,0.93197,2146.2,2146.0,1.56832]
[1741418410204,0.93197,2146.2,2146.0,2.19432]
[1741418410398,4.4933,2146.3,2146.0,1.2623]
[1741418410606,0.93214,2145.8,2145.6,0.93916676]
[1741418410809,0.93214,2145.8,2145.7,0.93217]
[1741418410998,0.93214,2145.8,2145.7,1.13217]
[1741418411193,0.93214,2145.8,2145.7,0.2]
[1741418411407,0.93217,2145.7,2145.6,0.65709676]
[1741418411606,0.93217,2145.7,2145.6,0.73709676]
[1741418414903,0.93217,2145.7,2145.6,0.00699676]
[1741418417303,3.3889,2145.8,2145.3,0.6555]
[1741418417609,0.9323,2145.4,2145.3,0.6755]
[1741418417809,0.9323,2145.4,2145.3,1.9587]
[1741418418309,0.93253,2144.9,2144.7,0.93259]
[1741418418510,0.93253,2144.9,2144.8,1.2541]
[1741418418807,0.93253,2144.9,2144.8,1.5541]
[1741418419302,0.93243,2145.1,2144.8,1.5541]
[1741418419500,0.93243,2145.1,2144.9,0.93249]
[1741418419701,3.2078,2145.2,2144.9,0.05]
[1741418419907,0.93247,2145.0,2144.9,0.05]
[1741418422902,3.2078,2145.2,2144.9,0.05]
[1741418422903,0.93246,2145.1,2144.9,0.05]
[1741418423105,3.2078,2145.2,2144.9,0.05]
[1741418423305,0.93244,2145.1,2144.9,0.05]
[1741418424505,3.2078,2145.2,2144.9,0.05]
[1741418424506,0.93239,2145.2,2144.9,0.05]
[1741418424811,0.93239,2145.2,2144.9,0.98248]
[1741418425113,2.005,2145.4,2144.9,0.05]
[1741418425303,0.93247,2145.0,2144.9,0.05]
[1741418425820,0.93246,2145.1,2144.9,0.05]
[1741418426815,0.9324,2145.2,2144.9,0.05]
[1741418427112,0.9324,2145.2,2145.0,0.93247]
[1741418427309,0.9324,2145.2,2145.0,0.96247]
[1741418428413,4.14009,2145.5,2145.1,0.6681]
[1741418428714,2.00999676,2145.6,2145.2,3.8365]
[1741418428916,0.93227,2145.5,2145.3,0.93232]
[1741418429110,0.00699676,2145.6,2145.2,4.442]
[1741418429415,0.93206,2146.0,2145.2,4.542]
[1741418429614,0.93206,2146.0,2145.7,0.93215]
[1741418429813,2.93802,2146.1,2145.8,0.6287]
[1741418430013,0.93205,2146.0,2145.8,1.2968]
[1741418430214,0.93208,2145.9,2145.8,1.2968]
[1741418430403,2.006,2146.1,2145.8,1.2968]
[1741418430607,0.93206,2146.0,2145.8,1.2968]
[1741418431612,0.93208,2145.9,2145.8,1.2968]
[1741418432418,0.93206,2146.0,2145.8,1.2968]
[1741418433315,0.93206,2146.0,2145.8,0.6287]
[1741418433715,5.2138,2146.1,2145.8,0.6287]
[1741418433915,0.93208,2145.9,2145.8,0.6287]
[1741418434218,0.93207,2146.0,2145.8,0.6287]
[1741418434712,0.93207,2146.0,2145.8,1.56082]
[1741418435015,5.2138,2146.1,2145.8,0.6287]
[1741418435218,6.14582,2146.1,2145.9,0.93208]
[1741418435512,0.93208,2145.9,2145.8,0.6287]
[1741418437814,5.2138,2146.1,2145.8,0.6287]
[1741418438016,0.93206,2146.0,2145.8,1.56081]
[1741418438712,5.2138,2146.1,2145.8,0.6287]
[1741418438915,2.93802,2146.1,2145.9,0.93205]
[1741418439117,0.93206,2146.0,2145.8,1.56081]
[1741418439512,0.93206,2146.0,2145.8,0.6287]
[1741418439710,0.93208,2145.9,2145.8,0.6287]
[1741418439918,0.93207,2146.0,2145.8,0.6287]
[1741418441121,0.93208,2145.9,2145.8,0.6287]
[1741418441619,2.006,2146.1,2145.8,0.6287]
[1741418441822,0.93206,2146.0,2145.8,1.56082]
[1741418442324,2.006,2146.1,2145.8,0.6287]
[1741418442523,0.93208,2145.9,2145.8,0.6287]
[1741418443322,0.93206,2146.0,2145.8,1.56082]
[1741418443618,0.93206,2146.0,2145.8,0.6287]
[1741418443920,0.93206,2146.0,2145.8,1.56081]
[1741418444524,2.006,2146.1,2145.8,0.6287]
[1741418444724,0.93207,2146.0,2145.8,1.56082]
[1741418445526,2.002,2146.3,2145.8,0.6287]
[1741418445727,2.002,2146.3,2145.9,0.93205]
[1741418445728,0.93199,2146.2,2145.9,0.93205]
[1741418446026,0.93201,2146.1,2145.9,0.93205]
[1741418446226,0.93204,2146.0,2145.9,0.6068]
[1741418447128,2.002,2146.3,2145.9,0.6068]
[1741418447529,0.93196,2146.2,2146.0,0.93201]
[1741418447828,2.002,2146.3,2145.9,0.6068]
[1741418448022,0.93202,2146.1,2145.9,1.53887]
[1741418448524,0.93197,2146.2,2146.0,0.93201]
[1741418449528,2.002,2146.3,2146.0,0.93201]
[1741418449730,0.93199,2146.1,2146.0,0.93201]
[1741418449929,2.002,2146.3,2145.9,0.6068]
[1741418450231,2.93394,2146.3,2146.1,0.93197]
[1741418450424,0.93195,2146.2,2146.0,0.93201]
[1741418450923,0.93195,2146.2,2146.1,0.6585]
[1741418451122,0.93194,2146.3,2146.1,1.59048]
[1741418451324,5.2098,2146.4,2146.1,0.6585]
[1741418451632,0.93195,2146.2,2146.1,0.6585]
[1741418456229,3.2078,2146.4,2146.1,0.6585]
[1741418456529,0.93194,2146.3,2146.1,0.6585]
[1741418456729,0.93194,2146.3,2146.1,1.59049]
[1741418458126,0.93194,2146.3,2146.2,0.6583]
[1741418463347,0.93194,2146.3,2146.1,1.59047]
[1741418463840,0.93194,2146.3,2146.2,0.93195]
[1741418464344,0.93191,2146.3,2146.2,0.93195]
[1741418466431,3.2078,2146.4,2146.1,0.6585]
[1741418466633,0.93181,2146.6,2146.1,3.9763]
[1741418466836,3.8402,2146.7,2146.1,3.9763]
[1741418466837,3.2078,2146.7,2146.6,0.93178]
[1741418467845,3.2078,2146.7,2146.4,1.2878]
[1741418468142,0.93182,2146.5,2146.4,1.3378]
[1741418468533,0.6589,2146.6,2146.1,4.79827]
[1741418468736,0.6589,2146.6,2146.1,5.2041]
[1741418468937,0.93182,2146.5,2146.2,0.93194]
[1741418469336,0.93188,2146.4,2146.1,5.1541]
[1741418469541,0.6589,2146.6,2146.1,1.9863]
[1741418469748,2.6609,2146.6,2146.1,1.9863]
[1741418470047,0.93195,2146.2,2146.1,1.9863]
[1741418471147,3.2078,2146.4,2146.1,2.91827]
[1741418471337,4.13969,2146.4,2146.2,0.93195]
[1741418471744,2.6609,2146.6,2146.2,0.93195]
[1741418472446,0.93188,2146.4,2146.2,0.93195]
[1741418472646,0.93188,2146.4,2146.1,2.87826]
[1741418472846,0.93188,2146.4,2146.1,2.91826]
[1741418473346,0.93188,2146.4,2146.1,1.9863]
[1741418473548,0.93188,2146.4,2146.2,0.93191]
[1741418474749,0.93184,2146.5,2146.3,0.93188]
[1741418474949,3.5927,2146.6,2146.4,1.54015]
[1741418475246,0.93182,2146.5,2146.4,1.54016]
[1741418475447,3.59271,2146.6,2146.4,1.54016]
[1741418475648,2.93381,2146.6,2146.4,1.54016]
[1741418475850,2.93381,2146.6,2146.5,1.2748]
[1741418476046,3.2078,2146.7,2146.5,1.2748]
[1741418476249,3.2078,2146.7,2146.6,0.93178]
[1741418476444,3.2078,2146.7,2146.5,2.20661]
[1741418476445,4.13955,2146.7,2146.5,2.20661]
[1741418476951,3.2078,2146.7,2146.6,0.93178]
[1741418478048,3.2078,2146.7,2146.5,1.2748]
[1741418478248,4.13955,2146.7,2146.5,2.2066]
[1741418478751,4.13955,2146.7,2146.5,1.2748]
[1741418478954,4.13955,2146.7,2146.5,2.20662]
[1741418479655,3.2078,2146.7,2146.5,1.2748]
[1741418479851,3.2078,2146.7,2146.6,0.93178]
[1741418481755,4.13954,2146.7,2146.5,2.20659]
[1741418481960,4.13954,2146.7,2146.5,2.23659]
[1741418482357,3.2078,2146.7,2146.6,0.93178]
[1741418482662,0.93178,2146.6,2146.5,0.6294]
[1741418482858,0.93182,2146.5,2146.4,3.8161]
[1741418483057,0.93182,2146.5,2146.4,3.8661]
[1741418483960,0.93182,2146.5,2146.4,3.8161]
[1741418484560,0.93186,2146.4,2146.3,0.6524]
[1741418484757,0.93203,2146.1,2145.9,1.55426]
[1741418484957,0.93203,2146.1,2145.9,1.75426]
[1741418485159,0.93198,2146.2,2145.9,1.75426]
[1741418486562,0.93201,2146.1,2145.9,0.8222]
[1741418486867,0.93204,2146.0,2145.9,0.8222]
[1741418487864,0.93203,2146.1,2145.9,0.8222]
[1741418488868,5.2088,2146.4,2146.0,0.93199]
[1741418489170,0.93193,2146.3,2146.0,0.97199]
[1741418490161,5.2088,2146.4,2146.1,0.93198]
[1741418490367,0.932,2146.1,2145.9,1.55426]
[1741418490567,0.932,2146.1,2145.9,2.92416]
[1741418491472,0.93198,2146.2,2145.9,2.92416]
[1741418491659,0.93198,2146.2,2145.9,1.9921]
[1741418491866,0.93193,2146.3,2145.9,1.9921]
[1741418492276,0.93193,2146.3,2146.0,0.932]
[1741418492469,0.93193,2146.3,2146.0,0.972]
[1741418492865,0.93193,2146.3,2146.0,0.04]
[1741418493069,0.6146,2146.6,2146.0,0.04]
[1741418493266,3.2078,2146.7,2146.4,0.93185]
[1741418493574,4.13956,2146.7,2146.5,1.927]
[1741418494169,3.2078,2146.7,2146.5,1.927]
[1741418494365,0.93178,2146.6,2146.5,1.927]
[1741418498468,0.93178,2146.6,2146.5,1.987]
[1741418505478,0.93175,2146.7,2146.5,1.987]
[1741418505688,0.93178,2146.6,2146.5,1.987]
[1741418506078,3.2078,2146.8,2146.7,0.93173]
[1741418506281,3.2078,2146.8,2146.7,0.94173]
[1741418506485,4.13949,2146.8,2146.7,0.01]
[1741418506685,0.93178,2146.6,2146.5,2.85881]
[1741418506878,0.93178,2146.6,2146.5,2.99881]
[1741418507182,0.93178,2146.6,2146.5,2.067]
[1741418510088,0.93176,2146.7,2146.5,2.99881]
[1741418511487,0.93177,2146.7,2146.5,2.99881]
[1741418512184,3.2078,2146.8,2146.5,2.067]
[1741418512387,0.93175,2146.7,2146.5,2.9988]
[1741418513687,3.2078,2146.8,2146.5,2.067]
[1741418513887,0.93178,2146.6,2146.5,2.067]
[1741418520291,2.93278,2146.6,2146.5,0.14]
[1741418520490,0.93195,2146.2,2146.1,3.2078]
[1741418520690,3.2078,2146.4,2146.1,3.2078]
[1741418520996,0.8263,2146.5,2146.3,0.93189]
[1741418520997,0.93183,2146.5,2146.3,0.93189]
[1741418521189,0.93183,2146.5,2146.4,1.8612]
[1741418523987,0.1874,2146.7,2146.1,3.2078]
[1741418524196,0.1874,2146.7,2146.1,3.3978]
[1741418524197,0.93195,2146.2,2146.1,3.3978]
[1741418524694,0.93195,2146.2,2146.1,3.2078]
[1741418525786,0.93192,2146.3,2146.1,4.19977]
[1741418525990,0.93192,2146.3,2146.2,1.9099]
[1741418526399,3.2078,2146.5,2146.1,3.2078]
[1741418526695,0.93195,2146.2,2146.1,3.2078]
[1741418529304,0.93204,2146.0,2145.9,1.89]
[1741418529602,0.93204,2146.0,2145.9,2.05]
[1741418530102,0.614,2146.3,2145.9,2.98208]
[1741418530292,0.93204,2146.0,2145.9,2.98208]
[1741418530888,0.93204,2146.0,2145.9,2.05]
[1741418531296,0.93201,2146.1,2145.9,2.98206]
[1741418532704,0.93201,2146.1,2145.9,2.05]
[1741418532903,0.93201,2146.1,2145.9,2.98207]
[1741418535908,3.2078,2146.5,2146.4,0.93186]
[1741418536209,0.93182,2146.5,2146.4,0.07]
[1741418536419,0.93182,2146.5,2146.4,1.3579]
[1741418536595,0.93182,2146.5,2146.4,2.0076]
[1741418538916,0.9318,2146.6,2146.4,2.0076]
[1741418539119,0.93175,2146.7,2146.4,2.0076]
[1741418539512,0.93179,2146.6,2146.4,2.0076]
[1741418539812,0.93179,2146.6,2146.4,2.93944]
[1741418541320,0.93173,2146.8,2146.5,0.93182]
[1741418541516,0.93173,2146.7,2146.5,0.93182]
[1741418541715,3.8202,2146.9,2146.4,1.9376]
[1741418541920,0.93171,2146.8,2146.6,0.93176]
[1741418542219,0.93173,2146.7,2146.5,0.93179]
[1741418542719,0.93171,2146.8,2146.6,0.93176]
[1741418543022,3.2078,2146.9,2146.7,0.6536]
[1741418543323,0.93163,2147.0,2146.8,2.22257]
[1741418543723,0.93163,2147.0,2146.8,1.2909]
[1741418543914,0.6698,2147.1,2146.8,1.2909]
[1741418544424,0.93164,2147.0,2146.8,1.2909]
[1741418544626,0.6698,2147.1,2146.8,1.2909]
[1741418544819,0.93165,2146.9,2146.8,1.2909]
[1741418549426,0.9316,2147.1,2146.8,1.2909]
[1741418549617,3.2078,2147.2,2147.1,0.93156]
[1741418549822,0.93145,2147.4,2147.0,3.2078]
[1741418550122,0.93139,2147.5,2147.3,0.93146]
[1741418550323,0.93138,2147.5,2147.4,1.2632]
[1741418550526,4.13917,2147.6,2147.4,1.2632]
[1741418550722,0.93138,2147.5,2147.4,1.2632]
[1741418553122,5.53589,2147.9,2147.4,1.2632]
[1741418553123,4.13903,2147.9,2147.7,0.93129]
[1741418553316,2.23973,2147.9,2147.8,2.18685]
[1741418553518,21.58429748,2148.5,2147.8,1.4156]
[1741418553719,0.93104,2148.3,2148.0,0.93114]
[1741418554136,0.93104,2148.3,2147.9,0.61899676]
[1741418554318,0.93108,2148.3,2147.9,1.63017676]
[1741418554520,0.93111,2148.2,2147.9,1.63019676]
[1741418554722,22.19189748,2148.5,2147.9,0.69899676]
[1741418554930,0.9311,2148.2,2147.9,1.63019676]
[1741418555132,0.6076,2148.5,2148.0,4.13893]
[1741418555439,0.93102,2148.4,2148.1,0.93111]
[1741418555631,0.6076,2148.5,2148.0,4.13895]
[1741418555936,0.93104,2148.3,2148.0,4.13895]
[1741418556123,0.93102,2148.4,2148.0,4.13895]
[1741418556427,3.2078,2148.6,2148.0,4.13895]
[1741418556428,3.2078,2148.6,2148.0,3.2578]
[1741418556632,3.2078,2148.6,2148.2,0.93104]
[1741418556930,4.13875,2148.6,2148.3,1.58473]
[1741418557125,0.93095,2148.5,2148.4,0.6685]
[1741418558626,0.93099,2148.4,2148.3,0.6537]
[1741418563034,0.93108,2148.2,2148.1,0.6685]
[1741418564435,0.6094,2148.4,2148.1,0.6685]
[1741418564635,0.93107,2148.3,2148.1,0.6685]
[1741418565432,0.6094,2148.4,2148.1,0.6685]
[1741418565934,0.93106,2148.3,2148.1,0.6685]
[1741418566235,0.93097,2148.5,2148.2,0.93106]
[1741418566535,0.93098,2148.5,2148.2,0.93106]
[1741418566925,0.931,2148.4,2148.2,0.93106]
[1741418567134,0.931,2148.4,2148.1,1.59959]
[1741418567334,0.931,2148.4,2148.1,1.67959]
[1741418567733,0.93104,2148.3,2148.1,0.7485]
[1741418567930,3.2078,2148.6,2148.1,0.7485]
[1741418568432,0.93105,2148.3,2148.1,0.7485]
[1741418568633,3.2078,2148.6,2148.1,0.7485]
[1741418568833,0.93108,2148.2,2148.1,0.7485]
[1741418570941,0.93107,2148.3,2148.1,1.67962]
[1741418571140,0.93106,2148.3,2148.1,1.67961]
[1741418571633,3.2078,2148.6,2148.1,0.7485]
[1741418571833,0.93102,2148.4,2148.2,0.93106]
[1741418572635,0.93102,2148.4,2148.1,0.6685]
[1741418572836,3.2078,2148.6,2148.1,0.6885]
[1741418573034,0.93105,2148.3,2148.1,1.61961]
[1741418574937,3.2078,2148.6,2148.2,0.93108]
[1741418575141,0.93103,2148.4,2148.3,0.6681]
[1741418575339,0.93108,2148.2,2148.1,0.6685]
[1741418575538,0.93108,2148.2,2148.1,0.6885]
[1741418575739,0.93107,2148.3,2148.1,1.61961]
[1741418575929,0.93108,2148.2,2148.1,0.6885]
[1741418576132,0.93106,2148.3,2148.1,1.61962]
[1741418576532,3.2078,2148.6,2148.1,0.6885]
[1741418576742,0.93108,2148.2,2148.1,0.6885]
[1741418578342,3.2078,2148.3,2148.0,0.6313]
[1741418578543,0.93112,2148.1,2148.0,0.6313]
[1741418580245,0.93117,2148.0,2147.9,0.00699676]
[1741418580441,0.93117,2148.0,2147.9,0.63129676]
[1741418586544,0.93117,2148.0,2147.9,0.00699676]
[1741418587645,4.13897,2148.0,2147.9,0.00699676]
[1741418589047,0.93147,2147.3,2147.2,3.8394]
[1741418589247,0.93147,2147.3,2147.2,4.6919]
[1741418593155,0.93837676,2147.5,2147.3,0.93146]
[1741418593455,0.93839676,2147.5,2147.3,0.97146]
[1741418593656,0.93840676,2147.5,2147.3,0.97147]
[1741418593951,0.00699676,2147.5,2147.3,0.04]
[1741418594143,0.93840676,2147.5,2147.3,0.04]
[1741418594343,0.93143,2147.4,2147.3,0.04]
[1741418596041,0.00699676,2147.5,2147.2,4.4719]
[1741418596042,0.93147,2147.3,2147.2,3.2078]
[1741418596240,0.93147,2147.3,2147.2,3.2378]
[1741418597050,0.93147,2147.3,2147.2,3.2078]
[1741418597249,0.93156,2147.1,2147.0,0.00699676]
[1741418597552,0.93169,2146.8,2146.7,0.6485]
[1741418597746,0.93169,2146.8,2146.7,0.9785]
[1741418597946,0.93169,2146.8,2146.7,1.5992]
[1741418598457,0.6044,2147.0,2146.7,1.5992]
[1741418598650,0.6537,2147.3,2146.7,1.5992]
[1741418598954,0.93159,2147.1,2146.8,0.93167]
[1741418599156,0.93166,2146.9,2146.8,0.07]
[1741418600555,0.6537,2147.3,2146.8,0.07]
[1741418600763,0.93159,2147.1,2146.9,0.93163]
[1741418601054,0.93159,2147.1,2146.7,1.2692]
[1741418601251,0.6537,2147.3,2146.7,2.53091]
[1741418601451,0.93162,2147.0,2146.8,0.93169]
[1741418601651,0.93162,2147.0,2146.8,1.08169]
[1741418601956,0.6537,2147.3,2146.8,0.15]
[1741418602256,0.93165,2146.9,2146.8,0.15]
[1741418602555,0.6537,2147.3,2146.8,1.08167]
[1741418602949,0.93157,2147.1,2146.8,1.08165]
[1741418603357,0.93157,2147.1,2146.9,0.93163]
[1741418603553,0.93155,2147.2,2146.9,0.93165]
[1741418603753,2.004,2147.4,2147.0,0.6706]
[1741418603955,2.6148,2147.4,2147.1,0.6058]
[1741418604250,0.93152,2147.2,2147.1,0.6058]
[1741418606952,0.93165,2146.9,2146.8,3.2078]
[1741418607159,0.93165,2146.9,2146.8,4.5649]
[1741418611456,0.93165,2146.9,2146.8,3.3078]
[1741418612051,0.93165,2146.9,2146.8,3.2078]
[1741418612258,0.93173,2146.7,2146.6,1.3062]
[1741418612557,0.93178,2146.6,2146.5,0.00699676]
[1741418613262,4.13958,2146.6,2146.5,0.00699676]
[1741418614264,4.78018,2146.6,2146.5,0.00699676]
[1741418614863,6.78518,2146.6,2146.5,0.00699676]
[1741418615568,0.93191,2146.3,2146.2,3.2078]
[1741418617961,0.93199,2146.1,2146.0,1.34029676]
[1741418618160,0.93199,2146.1,2146.0,1.47029676]
[1741418618667,0.00699676,2146.3,2146.0,1.47029676]
[1741418618961,0.93195,2146.2,2146.1,0.6133]
[1741418619162,0.93195,2146.2,2146.1,0.7133]
[1741418619560,0.93195,2146.2,2146.1,0.6133]
[1741418620162,0.00699676,2146.3,2146.0,1.34029676]
[1741418620356,0.00699676,2146.3,2146.0,1.48029676]
[1741418620558,0.93199,2146.1,2146.0,1.48029676]
[1741418624264,0.93195,2146.2,2146.0,2.41231676]
[1741418624570,0.93199,2146.1,2146.0,0.00699676]
[1741418625562,2.93999,2146.1,2146.0,0.00699676]
[1741418625762,0.93212,2145.8,2145.7,1.3152]
[1741418625958,0.93225,2145.6,2145.4,22.2158]
[1741418626159,0.93218,2145.7,2145.5,1.2616]
[1741418626461,0.93218,2145.7,2145.5,2.1316]
[1741418626859,0.93214,2145.8,2145.5,2.1316]
[1741418627062,0.93214,2145.8,2145.5,3.06383]
[1741418627264,3.2078,2146.0,2145.5,2.1316]
[1741418627463,0.93218,2145.7,2145.5,2.1316]
[1741418627864,0.93218,2145.7,2145.5,3.06385]
[1741418628064,0.93221,2145.6,2145.5,2.1316]
[1741418628667,3.2078,2146.0,2145.5,2.1316]
[1741418628866,0.93219,2145.7,2145.5,2.1316]
[1741418629465,0.93221,2145.7,2145.5,2.1316]
[1741418630862,3.2078,2146.0,2145.5,2.1316]
[1741418631060,0.93221,2145.6,2145.5,2.1316]